[Event "13th All African Mixed Team Rapid-ch 202"]
[Site "Accra"]
[Date "2024.03.09"]
[Round "5.8"]
[White "Shaba, Linda Dalitso"]
[Black "February, Jesse Nikki"]
[Result "0-1"]
[ECO "A44"]
[WhiteElo "1836"]
[BlackElo "1920"]
[Annotator "NA RC"]
[PlyCount "82"]
[EventDate "2024.03.07"]
[EventType "rapid"]
[EventCountry "GHA"]
[SourceTitle "playchess.com"]
[Source "ChessBase"]
[SourceQuality "1"]
[TimeControl "900+10"]

1. d4 {[%emt 0:00:05]} c5 {[%emt 0:00:12]} 2. d5 {[%emt 0:00:02]} e5 {[%emt 0:00:02]} 3. e4 {[%emt 0:00:21]} d6 {[%emt 0:00:02]} 4. Nf3 {[%emt 0:00:24]} Bg4 {[%emt 0:00:10]} 5. Be2 {[%emt 0:00:04]} Be7 {[%emt 0:00:05]} 6. O-O {[%emt 0:00:09]} Bxf3 {[%emt 0:00:05]} 7. Bxf3 {[%emt 0:00:03]} Bg5 {[%emt 0:00:03]} 8. c4 {[%emt 0:00:29]} Bxc1 {[%emt 0:00:04]} 9. Qxc1 {[%emt 0:00:02]} Nd7 {[%emt 0:00:23]} 10. Nc3 {[%emt 0:00:03]} a6 {[%emt 0:00:02]} 11. Bg4 {[%emt 0:00:24]} Ngf6 {[%emt 0:00:20]} 12. Bxd7+ {[%emt 0:00:05]} Qxd7 {[%emt 0:00:01]} 13. Qg5 {[%emt 0:00:08]} O-O {[%emt 0:00:18]} 14. f4 {[%emt 0:01:21]} h6 {[%emt 0:00:02]} 15. Qh4 {[%emt 0:00:02]} exf4 {[%emt 0:01:39]} 16. Qxf4 {[%emt 0:01:42]} Rae8 {[%emt 0:00:29]} 17. Rae1 {[%emt 0:00:05]} Re5 {[%emt 0:00:13]} 18. Rf3 {[%emt 0:00:17]} Rfe8 {[%emt 0:00:27]} 19. Rfe3 {[%emt 0:00:10]} b5 {[%emt 0:01:41]} 20. b3 {[%emt 0:00:51]} b4 {[%emt 0:03:51]} 21. Nd1 {[%emt 0:00:51]} Qe7 {[%emt 0:00:08]} 22. Nf2 {[%emt 0:00:37]} Nh5 {[%emt 0:00:45]} 23. Qf3 {[%emt 0:00:19]} f5 {[%emt 0:00:24]} 24. R3e2 {[%emt 0:02:19]} Nf6 {[%emt 0:00:23]} 25. Kf1 {[%emt 0:01:34]} Nxe4 {[%emt 0:02:14]} 26. Nxe4 {[%emt 0:00:39]} fxe4 {[%emt 0:00:39]} 27. Qe3 {[%emt 0:00:07]} g5 {[%emt 0:00:41]} 28. Rf2 {[%emt 0:00:11]} Rf8 {[%emt 0:00:08]} 29. Ree2 {[%emt 0:00:02]} Ref5 {[%emt 0:00:31]} 30. Rxf5 {[%emt 0:00:20]} Rxf5+ {[%emt 0:00:01]} 31. Kg1 {[%emt 0:00:24]} Re5 {[%emt 0:00:25]} 32. Qh3 {[%emt 0:00:12]} Kg7 {[%emt 0:00:33]} 33. Qc8 {[%emt 0:00:15]} e3 {[%emt 0:00:20]} 34. Qxa6 {[%emt 0:00:57]} Rf5 {[%emt 0:00:07]} 35. Qc8 {[%emt 0:01:04]} Qf7 {[%emt 0:01:03]} 36. h3 {[%emt 0:02:57]} Rf1+ {[%emt 0:00:04]} 37. Kh2 {[%emt 0:00:02]} Qf4+ {[%emt 0:00:17]} 38. g3 {[%emt 0:00:05]} Rf2+ {[%emt 0:00:07]} 39. Rxf2 {[%emt 0:00:08]} Qxf2+ {[%emt 0:00:03]} 40. Kh1 {[%emt 0:00:02]} e2 {[%emt 0:00:39]} 41. Qd7+ {[%emt 0:00:37]} Qf7 {[%emt 0:00:12]} 0-1

[Event "13th All African Mixed Team Rapid-ch 202"]
[Site "Accra"]
[Date "2024.03.09"]
[Round "5.9"]
[White "Wanyama, Harold"]
[Black "Rongwane, Gomolemo"]
[Result "0-1"]
[ECO "E00"]
[WhiteElo "2226"]
[BlackElo "2021"]
[Annotator "TA"]
[PlyCount "174"]
[EventDate "2024.03.07"]
[EventType "rapid"]
[EventCountry "GHA"]
[SourceTitle "playchess.com"]
[Source "ChessBase"]
[SourceQuality "1"]
[TimeControl "900+10"]

{[%evp 10,174,9,-19,34,49,40,33,25,18,22,15,24,0,10,15,18,-103,-45,-47,-54,-43,0,0,0,0,26,19,22,31,18,12,17,10,35,0,0,-6,-7,-56,0,-41,-35,-46,-25,-99,-108,-131,-113,-181,-146,-388,-377,-374,-360,-2656,-2656,-2485,-1910,-29995,-1320,-29986,-29987,-29991,-762,-760,-768,-4886,-4994,-1355,-236,-29983,-159,-400,-160,-151,0,0,0,0,0,0,0,-195,-212,-211,0,0,0,0,0,-29978,-29979,-29980,0,-29990,-29982,-29981,146,100,523,501,572,493,666,676,4134,992,2108,2205,592,524,472,0,2073,1399,11786,6878,29973,29974,4631,577,556,0,0,0,0,0,0,0,0,0,250,272,272,0,0,0,0,-928,-921,-921,-921,-921,-847,-844,-844,-818,-802,-921,-872,-731,-686,-617,-385,-596,-568,-29979,-29980,-29980,-29981,-29981,-553,-29983,-29984,-29984,-29985]} 1. d4 {[%emt 0:00:03]} Nf6 {[%emt 0:00:04]} 2. c4 {[%emt 0:00:02]} e6 {[%emt 0:00:06]} 3. g3 {[%emt 0:00:05]} d5 {[%emt 0:00:17]} 4. Bg2 {[%emt 0:00:04]} Bb4+ {[%emt 0:00:06]} 5. Nd2 {[%emt 0:00:03]} O-O {[%emt 0:00:16]} 6. Qc2 {[%emt 0:00:07]} Nc6 {[%emt 0:00:06]} (6... c5 $11) 7. Ngf3 $14 {[%emt 0:00:16]} a5 {[%emt 0:00:34]} 8. O-O {[%emt 0:00:15]} Be7 {[%emt 0:00:54] White is slightly better.} 9. a3 {[%emt 0:00:08]} a4 {[%emt 0:00:09]} 10. Rd1 {[%emt 0:00:18]} Bd7 {[%emt 0:00:18]} 11. e4 {[%emt 0:00:12]} Na5 {[%emt 0:00:45]} 12. Ne5 {[%emt 0:00:58]} Be8 {[%emt 0:01:05]} 13. f4 {[%emt 0:01:05]} (13. cxd5 $11 exd5 14. Rb1) 13... dxe4 {[%emt 0:00:53]} ({Black should try} 13... dxc4 $17 14. Ndxc4 Nb3) 14. Nxe4 $15 {[%emt 0:00:36]} Nb3 {[%emt 0:00:11]} 15. Rb1 {[%emt 0:00:31]} c5 {[%emt 0:01:46]} 16. dxc5 {[%emt 0:01:31]} Qc7 {[%emt 0:00:12]} 17. Be3 $36 {[%emt 0:00:17][%mdl 2048] White has the initiative.} Nxc5 {[%emt 0:01:25]} 18. Nxc5 {[%emt 0:01:56]} Bxc5 {[%emt 0:00:08]} 19. Bxc5 {[%emt 0:00:03]} Qxc5+ {[%emt 0:00:12]} 20. Qf2 {[%emt 0:00:02]} Qc7 {[%emt 0:00:50]} 21. Qd4 {[%emt 0:00:14]} Bc6 $1 {[%emt 0:01:48]} 22. Nxc6 {[%emt 0:00:41]} (22. Qd6 {with more complications.} Qb6+ 23. c5 Qb3 24. Bxc6 bxc6 25. Qd4) 22... bxc6 {[%emt 0:00:02]} 23. h3 {[%emt 0:01:09]} h5 {[%emt 0:00:28]} 24. Bf3 {[%emt 0:01:09] [#]} (24. Qe5 $11 Qb6+ 25. c5) 24... h4 {[%emt 0:00:45]} 25. g4 {[%emt 0:00:55]} Rad8 {[%emt 0:00:28]} 26. Qe3 {[%emt 0:06:50]} Rb8 {[%emt 0:00:27]} 27. Qe5 {[%emt 0:00:00]} (27. Rd3 $11 {remains equal.}) 27... Qa7+ $1 $17 {[%emt 0:00:12]} 28. Kg2 {[%emt 0:00:00][%cal Od1d6] [#]} Rb3 $1 {[%emt 0:00:12]} 29. Qd4 {[%emt 0:00:00]} (29. Rd2 $17) 29... c5 $19 {[%emt 0:00:16]} 30. Qd6 {[%emt 0:00:00] [#]} (30. Qe5 $17) 30... Rxf3 $1 {[%emt 0:01:22][%mdl 512]} 31. Kxf3 {[%emt 0:00:00]} Qb7+ {[%emt 0:00:04]} 32. Ke2 $2 {[%emt 0:00:00]} (32. Ke3 Qg2 33. Re1 Qxh3+ 34. Kd2) 32... Qg2+ {[%emt 0:00:29]} 33. Kd3 {[%emt 0:00:00]} Ne4 {[%emt 0:00:08] ( -> ...Qf3+)} 34. Qe5 {[%emt 0:00:00]} Nf2+ {[%emt 0:01:31]} (34... Qxh3+ 35. Kxe4 Qxg4 36. Rd2 $11 (36. Qxc5 Qe2+ 37. Qe3 f5+ 38. Kd4 Rd8+ 39. Kc5 Qxe3+ 40. Kc6 Rc8+ 41. Kb7 Qc5)) (34... Rd8+ $142 35. Qd5 Rxd5+ (35... exd5 36. Ke3 d4+ 37. Kd3 Qf3+ 38. Kc2 Qe2+ 39. Kc1 Qxc4#) 36. cxd5 Qf3+ (36... exd5 37. Ra1 Qxb2 38. Rac1 c4+ 39. Rxc4 Nf2+ 40. Ke3 Nxd1+ 41. Kd3 Qb3+ 42. Kd2 dxc4 43. f5 Qd3+ 44. Kc1 c3 45. f6 Qd2+ 46. Kb1 Qb2#) 37. Kc2 Qe2+ 38. Kc1 Qc4#) 35. Kc3 {[%emt 0:00:00]} Qxh3+ {[%emt 0:00:14]} 36. Kd2 {[%emt 0:00:00]} Nxg4 {[%emt 0:00:37]} (36... Rd8+ $142 37. Ke2 Nxd1 38. Rxd1 Qg2+ (38... Qxg4+ 39. Kf2 Rxd1 40. Qc3 h3 41. Ke3 h2 42. Qe5 Qg3+ 43. Ke2 Qe1+ 44. Kf3 h1=Q+ 45. Kg4 Qeh4#) 39. Ke3 Rxd1 40. Qb8+ Kh7 41. Qg8+ Kxg8 42. b4 Re1+ (42... Qxg4 43. bxc5 Qg3+ 44. Ke2 Qd3+ 45. Kf2 Rd2+ 46. Kg1 Qb1#) 43. Kd3 Qe2+ 44. Kc3 Rc1#) 37. Qe2 {[%emt 0:00:37]} Qg3 {[%emt 0:00:09][%cal Og4f2]} 38. Rf1 {[%emt 0:01:05]} Rd8+ {[%emt 0:00:27]} 39. Kc1 {[%emt 0:00:01]} Rd4 $2 {[%emt 0:00:10] White is weak on the dark squares} (39... Ne3 40. Re1 Nf5) 40. b3 $2 {[%emt 0:00:19]} (40. Rf3 $19 Qg1+ 41. Kc2 Rxc4+ 42. Qxc4 Qg2+ 43. Kc3 Qxf3+ 44. Qd3) 40... axb3 $2 {[%emt 0:00:08]} (40... Qc3+ 41. Qc2 Qe3+ (41... Qxc2+ $2 42. Kxc2 Ne3+ 43. Kc3 $19) 42. Kb2 Rd2 (42... Rxf4 $2 43. Rxf4 Qxf4 44. bxa4 $19) 43. Rbc1 Qxb3+ (43... Rxc2+ $2 44. Kxc2 Qxb3+ 45. Kd2 $19) (43... axb3 $2 44. Qxd2 Qxd2+ 45. Kxb3 $19) 44. Ka1 Rxc2 45. Rxc2 Qxc2 46. Rb1 Nf2 (46... Qxc4 47. f5 h3 48. fxe6 Qxe6 49. Rb8+ Kh7 50. Rb5 Qf6+ 51. Ka2 h2 52. Rb1 Qf3 53. Rc1 Qb3+ 54. Ka1 Ne3 55. Rxc5 h1=Q+ 56. Rc1 Qxc1#) (46... Qc3+ 47. Ka2 h3 48. Rb8+ Kh7 49. Rb2 h2 50. Rxh2+ Nxh2 51. Kb1 Nf3 52. Ka2 Qb3+ 53. Ka1 Nd2 54. f5 Qxa3#) 47. f5 Ne4 (47... Qxc4 48. fxe6 fxe6 49. Rb8+ Kh7 50. Rd8 h3 51. Rb8 h2 52. Rb1 Nd3 53. Rb8 Qc3+ 54. Ka2 Qc2+ 55. Ka1 h1=Q+ 56. Rb1 Qhxb1#) (47... Qc3+ 48. Ka2 Qd4 49. fxe6 fxe6 50. Rg1 h3 51. Rb1 h2 52. Rb8+ Kh7 53. Rb7 Nd1 54. Rb8 Nc3+ 55. Ka1 h1=Q+ 56. Kb2 Qd2#) 48. fxe6 Nc3 (48... Qc3+ 49. Ka2 Qd2+ 50. Ka1 Nc3 51. exf7+ Kh7 52. f8=N+ Kg8 53. Rb2 Qe1+ 54. Rb1 Qxb1#) 49. exf7+ Kh7 (49... Kxf7 50. Rf1+ Kg6 51. Rf6+ Kg5 52. Rg6+ Qxg6 53. Kb2 Qd3 54. Kc1 Qd1+ 55. Kb2 Qd2+ 56. Ka1 Qc1#) 50. f8=N+ Kg8 51. Rb2 Qd1+ 52. Rb1 Qxb1#) 41. Kb2 $2 {[%emt 0:00:03]} (41. Rf3 $17 Rxc4+ (41... Qg1+ 42. Kb2 $11) 42. Qxc4 Qxf3 43. Rxb3) 41... Nf6 {[%emt 0:00:45]} (41... Rxf4 42. Rxf4 Qxf4 43. Rf1 $19) (41... Ne3 $19 42. Rf3 Nxc4+ 43. Ka1 Qg4 44. Rbxb3 g6 (44... Rxf4 $2 45. Qd3 $19) 45. Rb8+ Kg7) 42. Rbd1 $17 {[%emt 0:00:18]} h3 $2 {[%emt 0:00:15]} (42... Rxf4 43. Rxf4 Qxf4 44. a4 $15) ({Black should play} 42... Nd7 $17 {Threatens to win with ...e5.} 43. Rxd4 cxd4) 43. Rxd4 $11 {[%emt 0:00:09]} cxd4 {[%emt 0:00:01][%mdl 4096] Endgame. KQR-KQN} 44. Qf3 {[%emt 0:00:05]} Qh4 {[%emt 0:00:30] ...h2 would now be deadly.} 45. a4 {[%emt 0:00:15][%cal Oa4a5]} Ng4 {[%emt 0:00:32]} 46. a5 $2 {[%emt 0:00:08]} (46. Kxb3 $11 h2 47. a5) 46... Ne3 $19 {[%emt 0:00:02]} 47. Rc1 {[%emt 0:00:02][%cal Oa5a6] [#] And now a6! would win.} Qd8 $2 {[%emt 0:00:09]} (47... h2 $1 $19 48. Kxb3 Qd8) 48. a6 $11 {[%emt 0:00:23][%cal Oa6a7] aiming for a7!} Qa5 $1 {[%emt 0:00:17][%csl Gb3][%cal Ra5a2]} 49. Qa8+ {[%emt 0:00:02]} Kh7 {[%emt 0:00:01][%csl Gb3][%cal Ra5a2]} 50. Qe4+ $2 {[%emt 0:00:00][%mdl 8192]} (50. Kxb3 $11 Qb6+ 51. Ka2) 50... f5 {[%emt 0:00:44][%csl Gb3][%cal Ra5a2]} 51. Qxd4 {[%emt 0:00:10]} Nc2 $2 {[%emt 0:00:00]} (51... Qa2+ 52. Kc3 b2 53. Qxe3 Qa3+ (53... b1=B $2 54. Qxh3+ Kg8 55. Qe3 $18) (53... bxc1=Q+ $2 54. Qxc1 Qxa6 55. Qh1 $19) 54. Kc2 Qxe3 55. Kxb2 h2 (55... Qxf4 $2 56. Rd1 $19) 56. Rh1 Qf2+ (56... Qxf4 57. Rd1 Qxc4 58. a7 Qe2+ 59. Kc1 Qa2 60. Re1 Qxa7 61. Rd1 Qa1+ 62. Kd2) 57. Kb1 Qxf4 (57... Qg1+ 58. Rxg1 hxg1=Q+ 59. Kc2 Qh2+ 60. Kd3 Qxf4 61. c5 Qe4+ 62. Kd2 Qd4+ 63. Ke2 Qc4+ 64. Ke3 f4+ 65. Kd2 Qxc5 66. Kd3 f3 67. a7 Qxa7 68. Kd2 f2 69. Ke2 Qd4 70. Kf1 Qf4 71. Kg2 f1=Q#) 58. Rd1 Qxc4 59. a7 Qe4+ (59... Qb3+ 60. Kc1 Qe3+ 61. Kc2 Qxa7 62. Rf1 Qg1 63. Rxg1 hxg1=Q 64. Kd3 f4 65. Kc4 f3 66. Kb5 f2 67. Kc6 f1=Q 68. Kd6 Qb6+ 69. Kd7 Qf7+ 70. Kc8 Qe8#) 60. Kb2 h1=Q (60... h1=N $2 61. Ra1 $19) 61. Rxh1+ Qxh1 62. Kc3 Qa1+ 63. Kd3 Qxa7 64. Kc4 Qb6 65. Kc3 f4 66. Kc4 f3 67. Kd3 f2 68. Ke2 Qd4 69. Kf1 Qf4 70. Kg2 f1=Q#) 52. Qd2 $2 {[%emt 0:00:28][%mdl 8192]} Qa3+ {[%emt 0:00:00]} 53. Kc3 {[%emt 0:00:02]} Qxa6 $2 {[%emt 0:00:00]} (53... b2+ {mates} 54. Kxc2 bxc1=Q+ (54... bxc1=B 55. Qxc1 Qxc1+ 56. Kxc1 h2 57. c5 h1=Q+ 58. Kb2 Qc6 59. Kc3 Qxa6 60. Kb4 g5 61. fxg5 f4 62. g6+ Kxg6 63. c6 Qxc6 64. Ka3 f3 65. Kb3 f2 66. Ka3 f1=Q 67. Kb4 Qcb5+ 68. Kc3 Qfd3#) 55. Qxc1 Qxc1+ (55... Qxa6 $2 56. Qf1 $19) 56. Kxc1 h2 57. Kd2 h1=Q (57... h1=R $2 58. Kd3 $19) 58. c5 Qa1 (58... Qd5+ 59. Ke2 Qxc5 60. Kd3 g5 61. fxg5 Kg6 62. Kd2 f4 63. Kd3 f3 64. a7 Qxa7 65. Kc4 f2 66. Kb5 f1=Q+ 67. Kb4 Qc1 68. Kb5 Qcc5#) 59. Kd3 Qxa6+ 60. Kc3 Qa4 61. c6 Qxf4 (61... Qxc6+ 62. Kd3 Kg6 63. Kd4 Kh5 64. Kd3 Kg4 65. Ke3 Kg3 66. Kd4 Kf2 67. Kd3 Ke1 68. Kd4 Ke2 69. Ke5 Qd5#) 62. Kd3 g5 63. Kc2 g4 64. Kd1 g3 65. c7 g2 (65... Qxc7 66. Kd2 g2 67. Ke3 g1=Q+ 68. Kf3 Qcg3+ 69. Ke2 Q3e3#) 66. c8=Q g1=Q+ (66... g1=B $2 67. Qd7+ Kh6 68. Qxe6+ Kh5 69. Qf7+ Kh4 70. Kc2 $19) 67. Kc2 Qgc1+ 68. Kb3 Qb1+ 69. Kc3 Qfb4#) 54. Kxb3 $16 {[%emt 0:00:04]} Qb6+ $2 {[%emt 0:00:09][%mdl 8192]} (54... Nd4+ $16 {is tougher.} 55. Qxd4 h2) 55. Kxc2 $18 {[%emt 0:00:02]} Qc6 {[%emt 0:00:06] Prevents Rh1.} 56. Qe2 {[%emt 0:00:06]} Kg8 {[%emt 0:00:06]} 57. Rb1 {[%emt 0:00:06]} h2 {[%emt 0:00:13]} 58. Rb8+ {[%emt 0:00:13]} (58. Qxh2 Qxc4+ 59. Kb2 Qb5+ 60. Kc1 Qf1+ 61. Kb2 Qb5+ 62. Ka1 Qa4+ 63. Kb2 Qb5+ $11) 58... Kf7 {[%emt 0:00:03]} 59. Qh5+ {[%emt 0:00:02]} (59. Qxh2 Qxc4+ 60. Kb1 Qe4+ 61. Qc2 Qxf4 62. Rb7+ Kg8 63. Qc8+ Kh7 64. Qxe6 Qf3 $18) 59... Ke7 {[%emt 0:00:18]} 60. Qh4+ {[%emt 0:00:04]} Kf7 {[%emt 0:00:03]} 61. Qh5+ {[%emt 0:00:23]} Ke7 {[%emt 0:00:01] Chess con chili.} 62. Qxh2 {[%emt 0:00:38] Qh4+ would kill now.} Qxc4+ {[%emt 0:00:02]} 63. Kb1 {[%emt 0:00:02]} Qf1+ {[%emt 0:00:14]} 64. Kb2 {[%emt 0:00:08]} Qf3 {[%emt 0:00:07]} 65. Qh4+ {[%emt 0:00:07]} Kf7 {[%emt 0:00:03]} 66. Rb4 $2 {[%emt 0:00:08]} (66. Qe1 $18 Qxf4 67. Rb7+ Kg6 68. Qxe6+ Kh7 69. Qe1) 66... Qe2+ $11 {[%emt 0:00:10]} 67. Ka3 {[%emt 0:00:06]} Qa6+ {[%emt 0:00:10]} 68. Kb2 {[%emt 0:00:16] White wants to mate with Qh5+.} Qe2+ {[%emt 0:00:03]} 69. Kc3 {[%emt 0:00:04]} Qe3+ {[%emt 0:00:09]} 70. Kc4 {[%emt 0:00:02] White threatens Qh5+ and mate.} Qe2+ $2 {[%emt 0:00:19]} (70... Qe4+ $1 $11 71. Kc5 Qd5+ 72. Kb6 Qd6+ 73. Ka5 Qc5+ 74. Rb5 Qa7+ 75. Kb4 Qd4+ 76. Ka3 (76. Kb3 Qd3+ 77. Kb4 Qd4+ 78. Ka3 Qd3+ 79. Rb3 Qd6+ 80. Ka4 Qa6+ 81. Kb4 Qb6+ 82. Kc4 Qc6+ 83. Kd3 Qf3+ 84. Kc4 Qc6+ 85. Kd3 Qf3+ 86. Kc2 Qg2+ 87. Kc3 Qf3+ 88. Kb4 Qb7+ 89. Ka3 Qa6+ 90. Kb4 Qb7+ 91. Ka3 Qa6+ 92. Kb2 Qe2+ 93. Ka3 Qa6+ $11) 76... Qc3+ 77. Ka4 Qd4+ 78. Rb4 Qd7+ 79. Rb5 Qd4+ 80. Rb4 Qd7+ 81. Ka5 Qa7+ 82. Kb5 Qb7+ 83. Kc4 Qe4+ 84. Kc3 Qe3+ 85. Kc4 Qe4+) 71. Kc5 $18 {[%emt 0:00:02] Rb7+ is the strong threat.} Qe3+ {[%emt 0:00:06]} 72. Rd4 $2 {[%emt 0:00:39]} ({Better is} 72. Kb5 $18) 72... Qc3+ $11 {[%emt 0:00:15]} 73. Rc4 {[%emt 0:00:01]} Qa5+ {[%emt 0:00:02]} 74. Kd6 $2 {[%emt 0:00:03][%mdl 8192]} (74. Kd4 $11 Qd2+ 75. Kc5 Qa5+ 76. Kd4 (76. Kc6 Qd5+ 77. Kb6 Qxc4 $11) 76... Qd2+ 77. Kc5 Qa5+) 74... Qd5+ $19 {[%emt 0:00:03]} 75. Kc7 {[%emt 0:00:03]} Qxc4+ {[%emt 0:00:01] KQ-KQ} 76. Kd7 {[%emt 0:00:01]} Qd4+ {[%emt 0:00:12]} 77. Kc7 {[%emt 0:00:04]} Qf6 {[%emt 0:00:05]} 78. Qh5+ {[%emt 0:00:06]} g6 {[%emt 0:00:02]} 79. Qh7+ {[%emt 0:00:03]} Qg7 {[%emt 0:00:01]} 80. Qh4 {[%emt 0:00:05]} Ke8+ {[%emt 0:00:10]} 81. Kb8 {[%emt 0:00:33]} Qb2+ {[%emt 0:00:08]} 82. Kc8 {[%emt 0:00:01]} (82. Kc7 $142 Qg7+ 83. Kb6) 82... Qc3+ {[%emt 0:00:04]} 83. Kb8 {[%emt 0:00:03]} Qb4+ {[%emt 0:00:02]} 84. Kc8 {[%emt 0:00:01]} Qc5+ {[%emt 0:00:02]} 85. Kb8 {[%emt 0:00:01]} Qb5+ {[%emt 0:00:10]} (85... Qd6+ $142 86. Kb7 Qe7+ 87. Qxe7+ Kxe7 88. Kc6 e5 89. Kd5 exf4 90. Kd4 g5 91. Kd3 f3 92. Ke3 g4 93. Kf2 f4 94. Kf1 g3 95. Ke1 Ke6 96. Kf1 Kf5 97. Ke1 Ke4 98. Kf1 Kd4 (98... f2 {gets mated.} 99. Kg2 Kd3 100. Kf1 Ke3 101. Kg2 f3+ 102. Kxg3 f1=Q 103. Kg4 Qb5 104. Kg3 Qg5+ 105. Kh3 Kf2 106. Kh2 Qh6#) 99. Ke1 Kc3 (99... f2+ 100. Ke2 Ke4 101. Kf1 Ke3 102. Kg2 f3+ 103. Kxg3 f1=Q 104. Kg4 Qb5 105. Kg3 Qg5+ 106. Kh3 Kf2 107. Kh2 Qh6#) 100. Kf1 Kd2 101. Kg1 Ke1 102. Kh1 f2 103. Kg2 f1=Q#) 86. Kc8 {[%emt 0:00:01]} Qd7+ {[%emt 0:00:01]} 87. Kb8 {[%emt 0:00:04]} Qd8+ {[%emt 0:00:01] A wild game.   Weighted Error Value: White=0.97/Black=0.97.  Loses game:     	White=5     	Black=1      Missed win:     	White=1     	Black=1      Mistake:       	White=5     	Black=3      Inaccurate:     	White=3     	Black=5      OK:         	White=12    	Black=7      Best:        	White=9     	Black=15     Strong:       	---       	Black=4      Brilliant:      	---       	Black=1} 0-1

[Event "13th All African Mixed Team Rapid-ch 202"]
[Site "Accra"]
[Date "2024.03.09"]
[Round "5.10"]
[White "Banda Natalie Katlo"]
[Black "Nakabo, Peninah"]
[Result "1-0"]
[ECO "D02"]
[WhiteElo "1772"]
[BlackElo "1836"]
[Annotator "NA RC"]
[PlyCount "109"]
[EventDate "2024.03.07"]
[EventType "rapid"]
[EventCountry "GHA"]
[SourceTitle "playchess.com"]
[Source "ChessBase"]
[SourceQuality "1"]
[TimeControl "900+10"]

1. d4 {[%emt 0:00:01]} d5 {[%emt 0:00:07]} 2. Nf3 {[%emt 0:00:01]} e6 {[%emt 0:00:03]} 3. e3 {[%emt 0:00:01]} Nf6 {[%emt 0:00:13]} 4. Nbd2 {[%emt 0:00:03]} Be7 {[%emt 0:00:17]} 5. c3 {[%emt 0:00:05]} O-O {[%emt 0:00:06]} 6. Bd3 {[%emt 0:00:02]} b6 {[%emt 0:00:18]} 7. O-O {[%emt 0:00:06]} c5 {[%emt 0:00:07]} 8. e4 {[%emt 0:00:41]} dxe4 {[%emt 0:00:19]} 9. Nxe4 {[%emt 0:00:15]} Bb7 {[%emt 0:00:11]} 10. Nxf6+ {[%emt 0:00:16]} Bxf6 {[%emt 0:00:05]} 11. dxc5 {[%emt 0:00:14]} bxc5 {[%emt 0:00:33]} 12. Be2 {[%emt 0:00:21]} Qb6 {[%emt 0:00:30]} 13. Qb3 {[%emt 0:00:16]} Rd8 {[%emt 0:01:18]} 14. Bf4 {[%emt 0:00:28]} Nd7 {[%emt 0:01:28]} 15. Rfd1 {[%emt 0:02:21]} Rac8 {[%emt 0:00:32]} 16. Rd2 {[%emt 0:02:52]} e5 {[%emt 0:00:25]} 17. Be3 {[%emt 0:00:20]} e4 {[%emt 0:00:20]} 18. Ne1 {[%emt 0:00:21]} Ne5 {[%emt 0:00:19]} 19. Rad1 {[%emt 0:00:40]} Rxd2 {[%emt 0:01:45]} 20. Rxd2 {[%emt 0:00:13]} Rd8 {[%emt 0:00:12]} 21. Rxd8+ {[%emt 0:00:21]} Bxd8 {[%emt 0:00:04]} 22. Bxc5 {[%emt 0:00:25]} Qxb3 {[%emt 0:00:50]} 23. axb3 {[%emt 0:00:04]} a6 {[%emt 0:00:55]} 24. Bd6 {[%emt 0:00:48]} Nc6 {[%emt 0:00:25]} 25. Nc2 {[%emt 0:01:09]} Bb6 {[%emt 0:00:24]} 26. Nb4 {[%emt 0:00:43]} Nxb4 {[%emt 0:00:11]} 27. Bxb4 {[%emt 0:00:04]} g6 {[%emt 0:00:13]} 28. Kf1 {[%emt 0:00:49]} Kg7 {[%emt 0:00:22]} 29. c4 {[%emt 0:00:06]} g5 {[%emt 0:00:35]} 30. Bc3+ {[%emt 0:00:21]} Kg6 {[%emt 0:00:03]} 31. b4 {[%emt 0:00:04]} f5 {[%emt 0:00:21]} 32. c5 {[%emt 0:00:14]} Bc7 {[%emt 0:00:05]} 33. b5 {[%emt 0:00:09]} axb5 {[%emt 0:00:33]} 34. Bxb5 {[%emt 0:00:01]} Bd5 {[%emt 0:00:10]} 35. Be8+ {[%emt 0:00:15]} Bf7 {[%emt 0:02:04]} 36. Bd7 {[%emt 0:00:46]} h5 {[%emt 0:01:10]} 37. b4 {[%emt 0:00:08]} Bc4+ {[%emt 0:00:16]} 38. Ke1 {[%emt 0:00:08]} Bxh2 {[%emt 0:00:10]} 39. b5 {[%emt 0:00:53]} h4 {[%emt 0:00:31]} 40. b6 {[%emt 0:00:50]} g4 {[%emt 0:00:12]} 41. b7 {[%emt 0:00:50]} Ba6 {[%emt 0:00:55]} 42. Be8+ {[%emt 0:01:25]} Kh7 {[%emt 0:00:38]} 43. Bd7 {[%emt 0:01:14]} Kg6 {[%emt 0:00:07]} 44. Be8+ {[%emt 0:00:25]} Kg5 {[%emt 0:00:30]} 45. Bd2+ {[%emt 0:00:17]} Kf6 {[%emt 0:00:04]} 46. Bc3+ {[%emt 0:00:17]} Ke6 {[%emt 0:00:30]} 47. c6 {[%emt 0:00:16]} h3 {[%emt 0:00:56]} 48. g3 {[%emt 0:00:14]} Bxg3 {[%emt 0:00:24]} 49. fxg3 {[%emt 0:00:08]} h2 {[%emt 0:00:02]} 50. b8=Q {[%emt 0:00:29]} h1=Q+ {[%emt 0:00:42]} 51. Kd2 {[%emt 0:00:00]} Qg2+ {[%emt 0:00:00]} 52. Kc1 {[%emt 0:00:00]} Qf1+ {[%emt 0:00:00]} 53. Kb2 {[%emt 0:00:07]} Qe2+ {[%emt 0:00:00]} 54. Ka3 {[%emt 0:00:12]} Qd3 {[%emt 0:00:21]} 55. Qe5# {[%emt 0:00:04]} 1-0

[Event "13th All African Mixed Team Rapid-ch 202"]
[Site "Accra"]
[Date "2024.03.09"]
[Round "5.11"]
[White "Paiva, Donaldo"]
[Black "Oluka Robert Mcligeyo"]
[Result "1-0"]
[ECO "E01"]
[WhiteElo "2172"]
[BlackElo "2041"]
[Annotator "RC"]
[PlyCount "79"]
[EventDate "2024.03.07"]
[EventType "rapid"]
[EventCountry "GHA"]
[SourceTitle "playchess.com"]
[Source "ChessBase"]
[SourceQuality "1"]
[TimeControl "900+10"]

1. d4 {[%emt 0:00:01]} Nf6 {[%emt 0:00:01]} 2. c4 {[%emt 0:00:01]} e6 {[%emt 0:00:01]} 3. Nf3 {[%emt 0:00:06]} d5 {[%emt 0:00:04]} 4. Nc3 {[%emt 0:00:01]} c6 {[%emt 0:00:07]} 5. g3 {[%emt 0:00:18]} Nbd7 {[%emt 0:00:36]} 6. Bg2 {[%emt 0:00:10]} Bd6 {[%emt 0:00:05]} 7. O-O {[%emt 0:00:03]} O-O {[%emt 0:00:03]} 8. Nd2 {[%emt 0:00:25]} dxc4 {[%emt 0:00:20]} 9. Nxc4 {[%emt 0:00:01]} Bc7 {[%emt 0:00:06]} 10. Qc2 {[%emt 0:01:38]} e5 {[%emt 0:00:16]} 11. Rd1 {[%emt 0:00:31]} Qe7 {[%emt 0:00:38]} 12. b3 {[%emt 0:01:13]} exd4 {[%emt 0:00:48]} 13. Ba3 {[%emt 0:00:05]} c5 {[%emt 0:00:15]} 14. Rxd4 {[%emt 0:00:06]} Ne5 {[%emt 0:14:10]} 15. Rad1 {[%emt 0:01:57]} Nc6 {[%emt 0:00:00]} 16. Bxc6 {[%emt 0:01:31]} bxc6 {[%emt 0:00:00]} 17. Na4 {[%emt 0:00:05]} Bb6 {[%emt 0:00:00]} 18. Ne3 {[%emt 0:01:09]} Re8 {[%emt 0:00:00]} 19. Bxc5 {[%emt 0:00:27]} Qb7 {[%emt 0:00:00]} 20. Nc4 {[%emt 0:01:08]} Bc7 {[%emt 0:00:00]} 21. Bd6 {[%emt 0:00:27]} Bg4 {[%emt 0:00:00]} 22. f3 {[%emt 0:00:27]} Bh5 {[%emt 0:00:00]} 23. Nc5 {[%emt 0:00:42]} Qc8 {[%emt 0:00:00]} 24. g4 {[%emt 0:01:51]} Bg6 {[%emt 0:00:00]} 25. e4 {[%emt 0:00:02]} h5 {[%emt 0:00:00]} 26. h3 {[%emt 0:00:16]} Nd5 {[%emt 0:00:06]} 27. Qd2 {[%emt 0:00:15]} Nb6 {[%emt 0:00:18]} 28. Ne3 {[%emt 0:00:13]} Bxd6 {[%emt 0:00:39]} 29. Rxd6 {[%emt 0:00:03]} Qc7 {[%emt 0:00:26]} 30. Qh2 {[%emt 0:01:02]} hxg4 {[%emt 0:00:33]} 31. hxg4 {[%emt 0:00:02]} Nc8 {[%emt 0:00:24]} 32. R6d3 {[%emt 0:01:17]} Qb6 {[%emt 0:00:09]} 33. Nd7 {[%emt 0:00:06]} Qa5 {[%emt 0:00:16]} 34. Nc4 {[%emt 0:00:13]} Qg5 {[%emt 0:00:10]} 35. Nde5 {[%emt 0:00:07]} Nb6 {[%emt 0:00:12]} 36. f4 {[%emt 0:00:13]} Qe7 {[%emt 0:00:14]} 37. Rh3 {[%emt 0:00:03]} Qc5+ {[%emt 0:00:11]} 38. Kf1 {[%emt 0:00:12]} Kf8 {[%emt 0:00:06]} 39. Rh8+ {[%emt 0:00:21]} Ke7 {[%emt 0:00:03]} 40. Qh4+ {[%emt 0:00:06]} 1-0